bitfinex/quotes_BTCUSD_20241022
["timestamp","ask_amount","ask_price","bid_price","bid_amount"]
[1729588145770,0.001652,66984.0,66983.0,0.15950129]
[1729588145771,0.002652,66984.0,66983.0,0.15950129]
[1729588146457,0.001652,66984.0,66983.0,0.15950129]
[1729588146987,0.001652,66984.0,66983.0,0.01021029]
[1729588147212,0.001652,66984.0,66983.0,0.15950129]
[1729588147443,0.001652,66984.0,66983.0,0.149291]
[1729588147670,0.001652,66984.0,66983.0,0.1594814]
[1729588147905,0.001652,66984.0,66983.0,0.1614814]
[1729588148155,0.001652,66984.0,66983.0,0.0121904]
[1729588148382,0.001652,66984.0,66983.0,0.1594814]
[1729588148630,0.001652,66984.0,66983.0,0.0111904]
[1729588148888,0.001652,66984.0,66983.0,0.0121904]
[1729588149580,0.001652,66984.0,66983.0,0.1614814]
[1729588150295,0.001652,66984.0,66983.0,0.0121904]
[1729588150296,0.155941,66984.0,66983.0,0.0121904]
[1729588151026,0.155941,66984.0,66983.0,0.002]
[1729588151266,0.006652,66984.0,66983.0,0.002]
[1729588151485,0.006652,66984.0,66983.0,0.01214257]
[1729588151709,0.006652,66984.0,66983.0,0.001]
[1729588151945,0.006652,66984.0,66981.0,0.149295]
[1729588152190,0.006652,66984.0,66983.0,0.01014257]
[1729588152411,0.006652,66984.0,66982.0,0.01014728]
[1729588152628,0.006652,66984.0,66981.0,0.149295]
[1729588152629,0.006652,66984.0,66983.0,0.01014257]
[1729588153074,0.006652,66984.0,66982.0,0.149293]
[1729588153321,0.006652,66984.0,66983.0,0.15944281]
[1729588153549,0.001652,66984.0,66983.0,0.38551894]
[1729588153771,0.001652,66984.0,66983.0,0.39051894]
[1729588154023,0.001652,66984.0,66983.0,0.30118131]
[1729588154272,0.001652,66984.0,66983.0,0.57452548]
[1729588154273,0.002652,66984.0,66983.0,0.57452548]
[1729588154524,0.002652,66984.0,66983.0,0.57154046]
[1729588154774,0.002652,66984.0,66983.0,0.82049961]
[1729588155006,0.002652,66984.0,66983.0,0.82449961]
[1729588155235,0.001652,66984.0,66983.0,0.82049961]
[1729588155463,0.002652,66984.0,66983.0,0.82649961]
[1729588155702,0.003652,66984.0,66983.0,0.83249961]
[1729588155986,0.001652,66984.0,66983.0,0.82049961]
[1729588156251,0.001692,66993.0,66983.0,0.82049961]
[1729588156252,0.001692,66993.0,66992.0,0.177271]
[1729588156488,0.001692,66993.0,66992.0,0.80240175]
[1729588156713,0.001692,66993.0,66992.0,0.89555734]
[1729588157894,0.001692,66998.0,66997.0,0.427737]
[1729588158176,0.001692,66998.0,66997.0,0.60169615]
[1729588158423,0.001692,66998.0,66997.0,0.60972819]
[1729588158675,0.001692,66998.0,66997.0,0.86068734]
[1729588159129,0.001692,67001.0,67000.0,0.154253]
[1729588159375,0.001692,67001.0,67000.0,0.4291965]
[1729588159611,0.001692,67001.0,67000.0,0.43621497]
[1729588160140,0.001692,67001.0,67000.0,0.15925582]
[1729588161093,0.002692,67001.0,67000.0,0.16925582]
[1729588161316,0.003692,67001.0,67000.0,0.17925582]
[1729588162075,0.003692,67001.0,67000.0,0.27105805]
[1729588162866,0.003692,67001.0,67000.0,0.17925582]
[1729588163096,0.003692,67001.0,67000.0,0.31897887]
[1729588163326,0.003692,67001.0,67000.0,0.31599432]
[1729588163565,0.003692,67001.0,67000.0,0.46995347]
[1729588164023,0.003692,67001.0,67000.0,0.49295347]
[1729588164256,0.003692,67001.0,67000.0,0.71562547]
[1729588164523,0.003692,67001.0,67000.0,0.72674311]
[1729588165214,0.001692,67005.0,67004.0,0.154244]
[1729588165469,0.001692,67005.0,67004.0,0.47405929]
[1729588165696,0.001692,67005.0,67004.0,0.61680178]
[1729588165936,0.001692,67005.0,67004.0,0.71080178]
[1729588166448,0.001692,67005.0,67004.0,0.88700178]
[1729588166689,0.001692,67012.0,67011.0,0.552706]
[1729588166913,0.001692,67012.0,67011.0,0.71278279]
[1729588167146,0.001692,67012.0,67011.0,0.87005821]
[1729588167866,0.00165,67014.0,67013.0,0.005]
[1729588168106,0.22265268,67027.0,67015.0,0.450697]
[1729588168349,0.22265268,67027.0,67015.0,0.61907123]
[1729588168592,0.22265268,67027.0,67015.0,0.76696397]
[1729588168849,0.22265268,67027.0,67015.0,0.76896397]
[1729588169391,0.001692,67028.0,67027.0,0.005]
[1729588169653,0.001692,67028.0,67027.0,0.31426979]
[1729588170118,0.001692,67028.0,67027.0,0.3224829]
[1729588170360,0.001692,67028.0,67027.0,0.45792454]
[1729588171038,0.001692,67028.0,67027.0,0.48092454]
[1729588171278,0.001692,67028.0,67027.0,0.48892454]
[1729588171529,0.001692,67028.0,67027.0,0.4778069]
[1729588171753,0.001692,67028.0,67027.0,0.4889138]
[1729588171980,0.001692,67028.0,67027.0,0.4909138]
[1729588172221,0.001692,67028.0,67027.0,0.4809138]
[1729588172667,0.001692,67028.0,67027.0,0.5809138]
[1729588173601,0.00165,67032.0,67031.0,0.450661]
[1729588173844,0.00165,67032.0,67031.0,0.6229477]
[1729588174065,0.00165,67032.0,67031.0,0.63108101]
[1729588174754,0.00165,67032.0,67031.0,0.91128101]
[1729588175449,0.00165,67032.0,67031.0,0.92128101]
[1729588175690,0.00165,67032.0,67031.0,0.74108101]
[1729588175948,0.00165,67032.0,67031.0,0.64108101]
[1729588176650,0.00165,67032.0,67031.0,0.63108101]
[1729588176890,0.00165,67032.0,67031.0,0.64208101]
[1729588177141,0.00165,67032.0,67031.0,0.64108101]
[1729588177585,0.00165,67032.0,67031.0,0.63608101]
[1729588177817,0.00165,67032.0,67031.0,0.64108101]
[1729588178265,0.00165,67032.0,67031.0,0.6410648]
[1729588180704,0.00165,67032.0,67031.0,0.49210565]
[1729588181909,0.00165,67032.0,67031.0,0.48101496]
[1729588182163,0.00165,67032.0,67031.0,0.48325356]
[1729588182892,0.00165,67032.0,67031.0,0.48101496]
[1729588186303,0.00165,67032.0,67031.0,0.47601496]
[1729588186521,0.00165,67032.0,67031.0,0.62797411]
[1729588186982,0.00165,67032.0,67031.0,0.61997411]
[1729588187202,0.00165,67032.0,67031.0,0.62297411]
[1729588187459,0.00165,67032.0,67031.0,0.63097411]
[1729588187959,0.00165,67032.0,67031.0,0.62797411]
[1729588188420,0.00165,67032.0,67031.0,0.63297411]
[1729588189580,0.00165,67032.0,67031.0,0.6552334]
[1729588189805,0.00165,67032.0,67031.0,0.65523755]
[1729588190806,0.00165,67032.0,67031.0,0.65023755]
[1729588191310,0.00165,67032.0,67031.0,0.64423755]
[1729588191527,0.00165,67032.0,67031.0,0.65323755]
[1729588191772,0.00165,67032.0,67031.0,0.75123755]
[1729588192479,0.00165,67032.0,67031.0,0.75323755]
[1729588192951,0.00165,67032.0,67031.0,0.88997605]
[1729588193231,0.00169,67044.0,67034.0,0.156178]
[1729588193456,0.00169,67044.0,67034.0,0.57097899]
[1729588193715,0.00169,67044.0,67034.0,0.59837372]
[1729588193939,0.00169,67044.0,67034.0,0.67737372]
[1729588194442,0.00169,67044.0,67034.0,0.77737372]
[1729588194712,0.00169,67044.0,67037.0,0.529648]
[1729588194952,0.00169,67044.0,67037.0,0.87286465]
[1729588195208,0.00169,67044.0,67037.0,0.88091786]
[1729588195436,0.00169,67044.0,67037.0,0.74217936]
[1729588196910,0.00169,67044.0,67037.0,0.49322021]
[1729588197419,0.00169,67044.0,67037.0,0.51322021]
[1729588197650,0.00169,67044.0,67037.0,0.50322021]
[1729588197874,0.00169,67044.0,67037.0,0.50122021]
[1729588198811,0.00169,67044.0,67037.0,0.47822021]
[1729588199528,0.00169,67044.0,67037.0,0.48422021]
[1729588199980,0.00169,67044.0,67037.0,0.49422021]
[1729588200481,0.00169,67044.0,67037.0,0.62314833]
[1729588200949,0.00169,67044.0,67037.0,0.49022021]
[1729588202156,0.00169,67044.0,67037.0,0.50811335]
[1729588202379,0.00169,67044.0,67037.0,0.46792186]
[1729588202646,0.00169,67044.0,67037.0,0.48292186]
[1729588202897,0.00169,67044.0,67037.0,0.49481542]
[1729588203142,0.00169,67044.0,67037.0,0.77074156]
[1729588203392,0.00169,67044.0,67037.0,0.76474156]
[1729588203621,0.00169,67044.0,67037.0,0.64200306]
[1729588204117,0.00169,67044.0,67037.0,0.63400306]
[1729588204385,0.00169,67044.0,67037.0,1.04374156]
[1729588204619,0.00169,67044.0,67037.0,1.08432059]
[1729588204850,0.00169,67044.0,67037.0,0.94858209]
[1729588205090,0.00169,67044.0,67037.0,0.87298209]
[1729588206269,0.00169,67044.0,67037.0,0.87198209]
[1729588206486,0.00169,67044.0,67037.0,0.87898209]
[1729588206814,0.00169,67044.0,67037.0,0.54939445]
[1729588207068,0.00169,67044.0,67037.0,0.47981542]
[1729588208742,0.00169,67044.0,67037.0,0.50281542]
[1729588209271,0.00169,67044.0,67037.0,0.63955392]
[1729588209520,0.00169,67044.0,67037.0,0.50281542]
[1729588209751,0.00169,67044.0,67037.0,0.64734264]
[1729588209974,0.00169,67044.0,67037.0,0.78408114]
[1729588210934,0.00169,67044.0,67037.0,0.64734264]
[1729588211406,0.00169,67044.0,67037.0,0.86348114]
[1729588212355,0.00169,67044.0,67037.0,0.90805293]
[1729588212604,0.00169,67044.0,67037.0,0.96348114]
[1729588212854,0.00169,67044.0,67037.0,1.04562472]
[1729588213110,0.00169,67044.0,67037.0,0.99606797]
[1729588213356,0.00169,67044.0,67037.0,1.05618114]
[1729588213603,0.00169,67044.0,67037.0,1.05518114]
[1729588213827,0.00169,67044.0,67037.0,1.04918114]
[1729588214062,0.00169,67044.0,67037.0,1.06118114]
[1729588214298,0.00169,67044.0,67037.0,1.17291466]
[1729588215719,0.00169,67044.0,67037.0,1.06118114]
[1729588216220,0.00169,67044.0,67043.0,0.2647385]
[1729588216472,0.00169,67044.0,67043.0,0.5893295]
[1729588216700,0.00169,67044.0,67043.0,0.61520431]
[1729588217419,0.00169,67044.0,67043.0,0.70460145]
[1729588217644,0.00169,67044.0,67043.0,0.71460145]
[1729588217894,0.00169,67044.0,67043.0,0.48846581]
[1729588218380,0.00169,67044.0,67043.0,0.57784471]
[1729588218884,0.00169,67044.0,67043.0,0.50668426]
[1729588219146,0.00169,67044.0,67043.0,0.35699196]
[1729588219386,0.00169,67044.0,67043.0,0.17503281]
[1729588219627,0.00169,67044.0,67043.0,0.32577131]
[1729588219852,0.00169,67044.0,67043.0,0.32377131]
[1729588220125,0.00169,67044.0,67043.0,0.31488692]
[1729588220387,0.00169,67044.0,67043.0,0.29388692]
[1729588220624,0.00169,67044.0,67043.0,0.29788692]
[1729588220858,0.00169,67044.0,67043.0,0.30188692]
[1729588221111,0.00169,67044.0,67043.0,0.29788692]
[1729588221347,0.00169,67044.0,67043.0,0.31577209]
[1729588221571,0.00169,67044.0,67043.0,0.31977209]
[1729588221807,0.00169,67044.0,67043.0,0.30188692]
[1729588222294,0.00169,67044.0,67043.0,0.31977389]
[1729588222527,0.00169,67044.0,67043.0,0.29388692]
[1729588222756,0.00169,67044.0,67043.0,0.30186967]
[1729588222983,0.00169,67044.0,67043.0,0.32477419]
[1729588223268,0.00169,67044.0,67043.0,0.18403569]
[1729588223510,0.00169,67044.0,67043.0,0.18903592]
[1729588223749,0.00169,67044.0,67043.0,0.18503592]
[1729588223990,0.00169,67044.0,67043.0,0.18703592]
[1729588224233,0.00169,67044.0,67043.0,0.62440891]
[1729588224475,0.00169,67044.0,67043.0,0.34299507]
[1729588225611,0.00169,67044.0,67043.0,0.32899507]
[1729588225845,0.00169,67044.0,67043.0,0.34299507]
[1729588226067,0.00169,67044.0,67043.0,0.33599507]
[1729588226520,0.00169,67044.0,67043.0,0.33499507]
[1729588226734,0.00169,67044.0,67043.0,0.48395422]
[1729588226968,0.00169,67044.0,67043.0,0.48995422]
[1729588227208,0.00169,67044.0,67043.0,0.48395422]
[1729588227427,0.00169,67044.0,67043.0,0.47795422]
[1729588227682,0.00169,67044.0,67043.0,0.19003592]
[1729588228604,0.00169,67044.0,67043.0,0.19301877]
[1729588228823,0.00169,67044.0,67043.0,0.18401877]
[1729588229267,0.00169,67044.0,67043.0,0.19201877]
[1729588229489,0.00169,67044.0,67043.0,0.17801877]
[1729588229717,0.00169,67044.0,67043.0,0.49479523]
[1729588229940,0.00169,67044.0,67043.0,0.49381268]
[1729588230159,0.00169,67044.0,67043.0,0.53851402]
[1729588230383,0.00169,67044.0,67043.0,0.49381268]
[1729588230607,0.00169,67044.0,67043.0,0.54051402]
[1729588230828,0.00169,67044.0,67043.0,0.54052147]
[1729588231079,0.00169,67044.0,67043.0,0.54052116]
[1729588231536,0.00169,67044.0,67043.0,0.49581268]
[1729588231766,0.00169,67044.0,67043.0,0.50353148]
[1729588232680,0.00169,67044.0,67043.0,0.49953148]
[1729588232928,0.00169,67044.0,67043.0,0.51353148]
[1729588233154,0.00169,67051.0,67050.0,0.179142]
[1729588233384,0.00169,67051.0,67050.0,0.48072715]
[1729588233614,0.00169,67051.0,67050.0,0.49639213]
[1729588233833,0.00169,67051.0,67050.0,0.47850463]
[1729588234063,0.00169,67051.0,67050.0,0.4963924]
[1729588234302,0.00169,67051.0,67050.0,0.62580742]
[1729588235015,0.00169,67051.0,67050.0,0.67051137]
[1729588235468,0.00169,67051.0,67050.0,0.67651137]
[1729588235702,0.00169,67051.0,67050.0,0.7212101]
[1729588235942,0.00169,67051.0,67050.0,0.7182101]
[1729588236183,0.00169,67051.0,67050.0,0.73220011]
[1729588236406,0.00169,67051.0,67050.0,0.64280742]
[1729588236913,0.00169,67051.0,67050.0,0.73756077]
[1729588237136,0.00169,67051.0,67050.0,0.74856077]
[1729588237356,0.00169,67051.0,67050.0,0.74850788]
[1729588237575,0.00169,67051.0,67050.0,0.72617075]
[1729588237802,0.00169,67051.0,67050.0,0.72616912]
[1729588238029,0.00169,67051.0,67050.0,0.70382982]
[1729588238245,0.00169,67051.0,67050.0,0.71682982]
[1729588238483,0.00169,67051.0,67050.0,0.72816912]
[1729588238731,0.00169,67051.0,67050.0,0.72516912]
[1729588239211,0.00169,67051.0,67050.0,0.76350788]
[1729588239434,0.00169,67051.0,67050.0,0.64980742]
[1729588239877,0.00169,67051.0,67050.0,0.76150788]
[1729588240133,0.00169,67060.0,67059.0,0.028]
[1729588240362,0.08439,67069.0,67059.0,0.028]
[1729588240368,0.00169,67069.0,67068.0,0.154102]
[1729588240591,0.00169,67069.0,67068.0,0.49609735]
[1729588240831,0.00169,67069.0,67068.0,0.51215066]
[1729588241539,0.00169,67069.0,67068.0,0.61215066]
[1729588242239,0.00169,67069.0,67068.0,0.62326702]
[1729588242456,0.00169,67069.0,67068.0,0.63026702]
[1729588243352,0.00169,67069.0,67068.0,0.63726702]
[1729588244075,0.00169,67069.0,67068.0,0.60826316]
[1729588244299,0.00169,67069.0,67068.0,0.60126316]
[1729588244752,0.00169,67069.0,67068.0,0.62241033]
[1729588244985,0.00169,67069.0,67068.0,0.61541033]
[1729588245243,0.00169,67069.0,67068.0,0.60541033]
[1729588245466,0.00169,67069.0,67068.0,0.69261033]
[1729588246180,0.00169,67069.0,67068.0,0.70261033]
[1729588246892,0.00169,67069.0,67068.0,0.70461033]
[1729588247543,0.00169,67069.0,67068.0,0.69461033]
[1729588247816,0.00169,67069.0,67068.0,0.70461033]
[1729588248031,0.00169,67069.0,67068.0,0.69461033]
[1729588248249,0.00169,67069.0,67068.0,0.68261033]
[1729588248483,0.00169,67069.0,67068.0,0.69461033]
[1729588248729,0.07679,67095.0,67094.0,0.2857825]
[1729588248975,0.07679,67095.0,67094.0,0.31436075]
[1729588249225,0.07679,67095.0,67094.0,0.33015807]
[1729588249707,0.00169,67096.0,67095.0,0.149042]
[1729588250202,0.00169,67096.0,67095.0,0.16483325]
[1729588250469,0.00169,67096.0,67095.0,0.28727625]
[1729588250703,0.00169,67096.0,67095.0,0.16483325]
[1729588252120,0.00169,67096.0,67095.0,0.70416406]
[1729588252349,0.00169,67096.0,67095.0,0.3417924]
[1729588253367,0.001788,67119.0,67118.0,0.148991]
[1729588253589,0.001788,67119.0,67118.0,0.3236286]
[1729588253816,0.001788,67119.0,67118.0,0.16574364]
[1729588254280,0.006788,67119.0,67118.0,0.01675264]
[1729588254512,0.098288,67119.0,67118.0,0.16574364]
[1729588254754,0.098288,67119.0,67118.0,0.148991]
[1729588254996,0.098288,67119.0,67118.0,0.16574364]
[1729588255469,0.083288,67119.0,67118.0,0.41459542]
[1729588255697,0.087288,67119.0,67118.0,0.41459542]
[1729588255931,0.005788,67119.0,67118.0,0.41459542]
[1729588256157,0.012788,67119.0,67118.0,0.41559542]
[1729588256396,0.008788,67119.0,67118.0,0.41559542]
[1729588256883,0.008788,67119.0,67118.0,0.16674364]
[1729588257794,0.014788,67119.0,67118.0,0.16674364]
[1729588258039,0.001688,67119.0,67118.0,0.16674364]
[1729588258481,0.007688,67119.0,67118.0,0.16674364]
[1729588258728,0.007688,67119.0,67118.0,0.16574364]
[1729588258962,0.016688,67119.0,67118.0,0.01675264]
[1729588259206,0.016688,67119.0,67109.0,0.4347595]
[1729588259207,0.016688,67119.0,67114.0,0.35939118]
[1729588259431,0.016688,67119.0,67118.0,0.01675264]
[1729588259664,0.016688,67119.0,67110.0,0.298018]
[1729588259901,0.016688,67119.0,67118.0,0.01675264]
[1729588260132,0.016688,67119.0,67116.0,0.148995]
[1729588260355,0.016688,67119.0,67118.0,0.01675264]
[1729588260601,0.016688,67119.0,67117.0,0.01675745]
[1729588260827,0.016688,67119.0,67115.0,0.148997]
[1729588261064,0.016688,67119.0,67118.0,0.01675264]
[1729588261296,0.016688,67119.0,67117.0,0.148992]
[1729588261520,0.016688,67119.0,67118.0,0.01675264]
[1729588261816,0.005688,67119.0,67118.0,0.16574364]
[1729588262049,0.001688,67119.0,67118.0,0.16574364]
[1729588262288,0.005688,67119.0,67118.0,0.18692187]
[1729588262765,0.009688,67119.0,67118.0,0.18692187]
[1729588263017,0.009688,67119.0,67118.0,0.16574364]
[1729588264387,0.001688,67119.0,67118.0,0.16574364]
[1729588264846,0.001688,67119.0,67118.0,0.16974364]
[1729588265075,0.001688,67119.0,67118.0,0.17274364]
[1729588265561,0.079688,67119.0,67118.0,0.02775264]
[1729588265801,0.079688,67119.0,67118.0,0.16574364]
[1729588266030,0.079688,67119.0,67118.0,0.16674364]
[1729588266732,0.079688,67119.0,67118.0,0.30548214]
[1729588267253,0.079688,67119.0,67118.0,0.30448214]
[1729588267507,0.001688,67119.0,67118.0,0.30448214]
[1729588267771,0.001688,67119.0,67118.0,0.73829337]
[1729588267995,0.001688,67119.0,67118.0,0.85929337]
[1729588268277,0.006688,67119.0,67118.0,0.85929337]
[1729588268469,0.001688,67119.0,67118.0,0.85829337]
[1729588268961,0.001688,67119.0,67118.0,0.86429337]
[1729588269658,0.001688,67119.0,67118.0,0.85829337]
[1729588271183,0.001688,67119.0,67118.0,0.87729337]
[1729588271406,9e-05,67125.0,67124.0,0.276978]
[1729588271620,9e-05,67125.0,67124.0,0.63787565]
[1729588271830,9e-05,67125.0,67124.0,0.65443293]
[1729588272700,9e-05,67125.0,67124.0,0.75903293]
[1729588272924,9e-05,67125.0,67124.0,0.79735203]
[1729588273145,9e-05,67125.0,67124.0,0.94631118]
[1729588273423,0.0001,67136.0,67135.0,0.005]
[1729588273633,0.0001,67136.0,67135.0,0.46265065]
[1729588273859,0.0001,67136.0,67135.0,0.47915507]
[1729588274745,0.0001,67136.0,67135.0,0.48115507]
[1729588274955,0.0001,67136.0,67135.0,0.61864598]
[1729588275170,0.001688,67137.0,67136.0,0.171951]
[1729588275382,0.001688,67137.0,67136.0,0.32591015]
[1729588275598,0.001688,67137.0,67136.0,0.36422925]
[1729588275844,0.001688,67137.0,67136.0,0.57914827]
[1729588276094,0.001688,67137.0,67136.0,0.9507601]
[1729588276318,0.0176749,67148.0,67147.0,0.2856645]
[1729588276550,0.0176749,67148.0,67147.0,0.43462365]
[1729588276781,0.0176749,67148.0,67147.0,0.45097372]
[1729588277002,0.0176749,67148.0,67147.0,0.62793287]
[1729588278357,0.0176749,67148.0,67147.0,0.63693287]
[1729588278610,0.0176749,67148.0,67147.0,0.64393287]
[1729588278830,0.0176749,67148.0,67147.0,0.30901457]
[1729588279048,0.1006749,67148.0,67147.0,0.18027607]
[1729588279272,0.1006749,67148.0,67147.0,0.17227607]
[1729588279982,0.1156749,67148.0,67147.0,0.02335007]
[1729588280233,0.1156749,67148.0,67147.0,0.01635007]
[1729588280468,0.1156749,67148.0,67147.0,0.008]
[1729588280700,0.1156749,67148.0,67147.0,0.0313388]
[1729588280920,0.1156749,67148.0,67144.0,0.148932]
[1729588281125,0.01,67147.0,67142.0,0.297876]
[1729588281373,0.01,67147.0,67144.0,0.148932]
[1729588281844,0.005,67139.0,67128.0,0.1367385]
[1729588282070,0.005,67145.0,67143.0,0.22265268]
[1729588282297,0.005,67145.0,67144.0,0.148933]
[1729588282525,0.005,67145.0,67144.0,0.16630098]
[1729588282981,0.015,67145.0,67144.0,0.01736798]
[1729588283206,0.163931,67145.0,67144.0,0.01736798]
[1729588283433,0.015,67145.0,67144.0,0.001]
[1729588283915,0.016,67145.0,67144.0,0.001]
[1729588284130,0.016,67145.0,67144.0,0.01737839]
[1729588284363,0.015,67145.0,67138.0,0.22265268]
[1729588284591,0.015,67145.0,67144.0,0.01637839]
[1729588284833,0.015,67145.0,67138.0,0.22265268]
[1729588284834,0.005,67135.0,67126.0,0.1367385]
[1729588285104,0.005,67135.0,67133.0,0.149957]
[1729588285105,0.075,67134.0,67133.0,0.149957]
[1729588285352,0.075,67134.0,67133.0,0.148957]
[1729588286311,0.005,67143.0,67130.0,0.35939118]
[1729588286550,0.01,67144.0,67130.0,0.35939118]
[1729588286551,0.015,67144.0,67143.0,0.148935]
[1729588287902,0.016,67144.0,67143.0,0.148935]
[1729588288354,0.02,67144.0,67143.0,0.148935]
[1729588288543,0.016,67144.0,67143.0,0.148935]
[1729588289041,0.02,67144.0,67143.0,0.148935]
[1729588289287,0.015,67144.0,67142.0,0.148937]
[1729588289510,0.017,67144.0,67143.0,0.148935]
[1729588290010,0.015,67144.0,67143.0,0.148935]
[1729588290224,0.018,67144.0,67141.0,0.148939]
[1729588290441,0.019,67144.0,67140.0,0.297883]
[1729588290658,0.019,67144.0,67143.0,0.148935]
[1729588291372,0.005,67141.0,67138.0,0.22265268]
[1729588291606,0.005,67140.0,67139.0,0.148944]
[1729588292062,0.005,67140.0,67137.0,0.297898]
[1729588292063,0.005,67138.0,67137.0,0.148949]
[1729588294213,0.005,67138.0,67137.0,0.152949]
[1729588294885,0.005,67138.0,67137.0,0.157949]
[1729588295587,0.005,67142.0,67137.0,0.152949]
[1729588295816,0.005,67144.0,67140.0,0.1367385]
[1729588296041,0.01,67144.0,67143.0,0.148935]
[1729588296267,0.005,67144.0,67143.0,0.148935]
[1729588296753,0.015,67144.0,67142.0,0.148937]
[1729588296993,0.0874,67137.0,67136.0,0.000824]
[1729588297224,0.3272385,67137.0,67136.0,0.000824]
[1729588297461,0.3322385,67137.0,67136.0,0.000824]
[1729588297710,0.1955,67137.0,67136.0,0.000824]
[1729588297954,0.63514665,67137.0,67136.0,0.000824]
[1729588298173,0.49840815,67137.0,67136.0,0.000824]
[1729588299393,0.50940815,67137.0,67136.0,0.001824]
[1729588299625,0.61140815,67137.0,67136.0,0.000824]
[1729588299864,0.61040815,67137.0,67136.0,0.000824]
[1729588300092,0.61940815,67137.0,67136.0,0.002824]
[1729588300343,0.60940815,67137.0,67136.0,0.001824]
[1729588300564,0.60840815,67137.0,67136.0,0.000824]
[1729588301048,0.60940815,67137.0,67136.0,0.001824]
[1729588301293,0.44545915,67137.0,67136.0,0.001824]
[1729588301780,0.46445915,67137.0,67136.0,0.002824]
[1729588302265,0.61240815,67137.0,67136.0,0.001824]
[1729588302478,0.59940815,67137.0,67136.0,0.001824]
[1729588302701,0.61340815,67137.0,67136.0,0.002824]
[1729588303122,0.61240815,67137.0,67136.0,0.001824]
[1729588303371,0.61340815,67137.0,67136.0,0.002824]
[1729588303629,0.59940815,67137.0,67136.0,0.001824]
[1729588303865,0.59840815,67137.0,67136.0,0.000824]
[1729588304345,0.59940815,67137.0,67136.0,0.001824]
[1729588304866,0.61240815,67137.0,67136.0,0.002824]
[1729588307510,0.45845915,67137.0,67136.0,0.002824]
[1729588307762,0.26035915,67137.0,67136.0,0.002824]
[1729588308516,0.26045915,67137.0,67136.0,0.01655671]
[1729588308762,0.26045915,67137.0,67136.0,0.002824]
[1729588309005,0.26045915,67137.0,67136.0,0.01655671]
[1729588309256,0.26045915,67137.0,67136.0,0.002824]
[1729588309257,0.40940815,67137.0,67136.0,0.002824]
[1729588313066,0.40840815,67137.0,67136.0,0.001824]
[1729588313303,0.40940815,67137.0,67136.0,0.002824]
[1729588313760,0.40840815,67137.0,67136.0,0.001824]
[1729588314242,0.0151,67137.0,67136.0,0.000824]
[1729588314761,0.0271,67137.0,67136.0,0.001824]
[1729588314986,0.0271,67137.0,67136.0,0.01458764]
[1729588315202,0.0401,67137.0,67136.0,0.002824]
[1729588315424,0.0161,67137.0,67136.0,0.001824]
[1729588315689,0.015,67137.0,67136.0,0.01458764]
[1729588315929,0.026,67137.0,67136.0,0.01658764]
[1729588316164,0.016,67137.0,67136.0,0.01558764]
[1729588316405,0.015,67137.0,67136.0,0.000824]
[1729588316616,0.015,67137.0,67136.0,0.01458764]
[1729588316849,0.016,67137.0,67136.0,0.001824]
[1729588317341,0.016,67137.0,67136.0,0.17961674]
[1729588317560,0.025,67137.0,67136.0,0.151775]
[1729588317789,0.025,67137.0,67136.0,0.16453864]
[1729588317790,0.016,67137.0,67136.0,0.16453864]
[1729588318303,0.023,67137.0,67136.0,0.16453864]
[1729588318516,0.016,67137.0,67136.0,0.16453864]
[1729588318771,0.017,67137.0,67136.0,0.01558764]
[1729588319017,0.015,67137.0,67136.0,0.01458764]
[1729588319489,0.016,67137.0,67136.0,0.000824]
[1729588320006,0.015,67137.0,67136.0,0.01458764]
[1729588320243,0.016,67137.0,67136.0,0.000824]
[1729588320483,0.01582073,67137.0,67136.0,0.01458764]
[1729588320935,0.01582073,67137.0,67136.0,0.000824]
[1729588320936,0.39292888,67137.0,67136.0,0.000824]
[1729588321185,0.39492888,67137.0,67136.0,0.000824]
[1729588321428,0.39192888,67137.0,67136.0,0.000824]
[1729588321644,0.39392888,67137.0,67136.0,0.000824]
[1729588321872,0.50792888,67137.0,67136.0,0.000824]
[1729588322127,0.51492888,67137.0,67136.0,0.001824]
[1729588322361,0.51392888,67137.0,67136.0,0.001824]
[1729588322583,0.50792888,67137.0,67136.0,0.001824]
[1729588322805,0.51892888,67137.0,67136.0,0.002824]
[1729588323029,0.51792888,67137.0,67136.0,0.001824]
[1729588323502,0.51892888,67137.0,67136.0,0.002824]
[1729588324733,0.56350124,67137.0,67136.0,0.002824]
[1729588325416,0.58578742,67137.0,67136.0,0.002824]
[1729588325876,0.51892888,67137.0,67136.0,0.002824]
[1729588326344,0.52057688,67137.0,67136.0,0.002824]
[1729588326575,0.58743542,67137.0,67136.0,0.002824]
[1729588327048,0.63400778,67137.0,67136.0,0.002824]
[1729588327722,0.63400778,67137.0,67136.0,0.001824]
[1729588327947,0.63300778,67137.0,67136.0,0.001824]
[1729588328175,0.51057688,67137.0,67136.0,0.000824]
[1729588328397,0.52257688,67137.0,67136.0,0.001824]
[1729588328865,0.51157688,67137.0,67136.0,0.001824]
[1729588329106,0.52357688,67137.0,67136.0,0.002824]
[1729588329315,0.52257688,67137.0,67136.0,0.000824]
[1729588329532,0.52357688,67137.0,67136.0,0.001824]
[1729588330907,0.53657688,67137.0,67136.0,0.000824]
[1729588331157,0.51057688,67137.0,67136.0,0.000824]
[1729588331377,0.53857688,67137.0,67136.0,0.001824]
[1729588331613,0.52457688,67137.0,67136.0,0.001824]
[1729588331857,0.51057688,67137.0,67136.0,0.000824]
[1729588332078,0.53857688,67137.0,67136.0,0.001824]
[1729588332990,0.54421589,67137.0,67136.0,0.001824]
[1729588335201,0.53021589,67137.0,67136.0,0.001824]
[1729588335434,0.51621589,67137.0,67136.0,0.000824]
[1729588335663,0.54121589,67137.0,67136.0,0.001824]
[1729588336966,0.51621589,67137.0,67136.0,0.000824]
[1729588337187,0.53021589,67137.0,67136.0,0.000824]
[1729588337441,0.54121589,67137.0,67136.0,0.001824]
[1729588337659,0.52721589,67137.0,67136.0,0.000824]
[1729588337875,0.53021589,67137.0,67136.0,0.000824]
[1729588338104,0.53021589,67137.0,67136.0,0.001824]
[1729588338105,0.51165509,67137.0,67136.0,0.001824]
[1729588345227,0.5692228,67137.0,67136.0,0.001824]